lending/lending_fUSD_20240410
["ID","MTS","AMOUNT","RATE_DAILY","PERIOD"]
[322103440,1712776240966,-845.27329985,0.00021,2]
[322103472,1712776242988,-340.5832068,0.00020547,2]
[322103473,1712776243133,-34.36194945,0.00020547,2]
[322103474,1712776243144,-877.00031196,0.00021,2]
[322103487,1712776246333,-846.27158813,0.00020547,2]
[322103488,1712776246344,-182.94210018,0.00020547,2]
[322103489,1712776246354,-507.09347182,0.00020547,2]
[322103490,1712776267155,467.19131066,0.00018909,2]
[322103491,1712776267804,2478.96,0.00018981,2]
[322103492,1712776274988,15934.83351181,0.00018909,2]
[322103493,1712776320665,1782.49,0.00018981,2]
[322103494,1712776571144,356.63,0.00017145,2]
[322103495,1712777064916,338.79,0.0001755,2]
[322103524,1712777277869,157.77169423,0.00018917,2]
[322103532,1712777432045,-155.0,0.00019005,2]
[322103533,1712777432055,-201.9156312,0.00019006,2]
[322103534,1712777432064,-785.62918872,0.00019007,2]
[322103535,1712777432074,-688.24499992,0.00019008,2]
[322103536,1712777432083,-2203.09868202,0.00019009,2]
[322103537,1712777432095,-2221.96,0.0001901,2]
[322103538,1712777432106,-306.54353149,0.000192,2]
[322103539,1712777432115,-200.0,0.00019386,2]
[322103540,1712777432125,-985.85,0.00019439,2]
[322103541,1712777432135,-500.0,0.00019448,2]
[322103542,1712777432144,-3977.97,0.00019451,2]
[322103543,1712777432154,-1234.79,0.00019454,2]
[322103544,1712777432164,-673.1,0.00019454,2]
[322103545,1712777432174,-2639.73,0.00019454,2]
[322103546,1712777432183,-499.99,0.00019454,2]
[322103547,1712777432192,-11006.07,0.00019454,2]
[322103548,1712777432202,-150.99,0.00019454,2]
[322103549,1712777432211,-150.99,0.00019454,2]
[322103550,1712777432221,-182.99,0.00019468,2]
[322103551,1712777432230,-156.22,0.00019513,2]
[322103552,1712777432239,-800.0,0.0001953,2]
[322103553,1712777432249,-167.58,0.0001955,2]
[322103554,1712777432258,-7807.53413068,0.00019567,2]
[322103555,1712777432270,-13079.51586932,0.00019567,2]
[322103556,1712777432280,-1651.96,0.00019578,2]
[322103557,1712777432289,-250.0,0.00019614,2]
[322103558,1712777432298,-171.53,0.00019617,2]
[322103559,1712777432308,-150.99,0.00019631,2]
[322103560,1712777432317,-9999.99,0.00019659,2]
[322103561,1712777432326,-16589.2348,0.00019721,2]
[322103562,1712777432336,-156.22,0.00019767,2]
[322103563,1712777432348,-338.79,0.00019814,2]
[322103564,1712777432357,-13993.2565,0.00019822,2]
[322103565,1712777432366,-326.67757,0.0002,2]
[322103566,1712777432375,-5944.33153651,0.0002,2]
[322103567,1712777432384,-156.22,0.00020022,2]
[322103568,1712777432393,-165.59,0.00020117,2]
[322103569,1712777432402,-165.59,0.00020167,2]
[322103570,1712777432411,-165.59,0.00020217,2]
[322103571,1712777432420,-156.22,0.00020276,2]
[322103572,1712777432429,-156.22,0.0002053,2]
[322103573,1712777432439,-1015.82423617,0.00020546,2]
[322103574,1712777432448,-519.0,0.00020547,2]
[322103575,1712777432457,-549.0,0.00020547,2]
[322103576,1712777432466,-194.05199,0.00020548,2]
[322103577,1712777432476,-15284.026561,0.00020668,2]
[322103578,1712777432485,-2500.0,0.00020669,2]
[322103579,1712777432494,-15284.02656097,0.00020694,2]
[322103580,1712777432504,-24000.000001,0.000207,2]
[322103581,1712777432517,-2857.9665461,0.00020701,2]
[322103582,1712777432526,-150.0,0.00020705,2]
[322103583,1712777432535,-15284.02656097,0.0002072,2]
[322103584,1712777432545,-2857.9665461,0.00020723,2]
[322103585,1712777432554,-300.0,0.00020725,2]
[322103586,1712777432564,-150.0,0.00020727,2]
[322103587,1712777432573,-150.0,0.00020727,2]
[322103588,1712777432583,-150.0,0.00020728,2]
[322103589,1712777432596,-150.0,0.00020729,2]
[322103590,1712777432605,-150.0,0.0002073,2]
[322103591,1712777432614,-150.0,0.00020733,2]
[322103592,1712777432622,-150.0,0.00020734,2]
[322103593,1712777432632,-150.0,0.00020739,2]
[322103594,1712777432641,-150.0,0.00020741,2]
[322103595,1712777432650,-1500.0,0.00020741,2]
[322103596,1712777432659,-2857.9665461,0.00020745,2]
[322103597,1712777432669,-15284.02656097,0.00020745,2]
[322103598,1712777432678,-150.0,0.00020747,2]
[322103599,1712777432687,-150.0,0.00020747,2]
[322103600,1712777432697,-150.0,0.00020751,2]
[322103601,1712777432706,-1500.0,0.00020752,2]
[322103602,1712777432715,-150.0,0.00020757,2]
[322103603,1712777432724,-150.0,0.00020757,2]
[322103604,1712777432733,-500.0,0.00020758,2]
[322103605,1712777432743,-300.0,0.00020761,2]
[322103606,1712777432752,-889.1821352,0.00020762,2]
[322103607,1712777432761,-150.0,0.00020762,2]
[322103608,1712777432771,-150.0,0.00020762,2]
[322103609,1712777432780,-157.85557872,0.00020764,2]
[322103610,1712777432789,-1500.0,0.00020766,2]
[322103611,1712777432798,-150.0,0.00020767,2]
[322103612,1712777432807,-2857.9665461,0.00020767,2]
[322103613,1712777432816,-1500.0,0.00020768,2]
[322103614,1712777432826,-15284.02656097,0.00020771,2]
[322103615,1712777432834,-150.0,0.00020776,2]
[322103616,1712777432844,-150.0,0.00020781,2]
[322103617,1712777432854,-1500.0,0.00020781,2]
[322103618,1712777432863,-150.0,0.00020785,2]
[322103619,1712777432872,-300.0,0.00020786,2]
[322103620,1712777432881,-151.48,0.00020787,2]
[322103621,1712777432891,-150.0,0.00020787,2]
[322103622,1712777432900,-2857.9665461,0.00020789,2]
[322103623,1712777432910,-165.70820128,0.0002079,2]
[322103624,1712777432919,-150.0,0.0002079,2]
[322103625,1712777432927,-150.0,0.0002079,2]
[322103626,1712777432936,-150.0,0.0002079,2]
[322103627,1712777432946,-1442.7812,0.0002079,2]
[322103628,1712777432954,-150.0,0.00020793,2]
[322103629,1712777432963,-150.0,0.00020794,2]
[322103630,1712777432973,-15284.02656097,0.00020797,2]
[322103631,1712777432982,-1500.0,0.00020797,2]
[322103632,1712777432991,-150.0,0.00020798,2]
[322103633,1712777433001,-685.38253751,0.00020799,2]
[322103634,1712777433010,-150.0,0.00020799,2]
[322103635,1712777433019,-315.97222251,0.00020799,2]
[322103636,1712777433029,-150.0,0.000208,2]
[322103637,1712777433038,-1500.0,0.000208,2]
[322103638,1712777433047,-1500.0,0.00020801,2]
[322103639,1712777433057,-150.0,0.00020803,2]
[322103640,1712777433066,-150.0,0.00020805,2]
[322103641,1712777433077,-1500.0,0.00020805,2]
[322103642,1712777433086,-1500.0,0.00020805,2]
[322103643,1712777433097,-150.0,0.00020806,2]
[322103644,1712777433207,-150.0,0.00020807,2]
[322103645,1712777433217,-157.85557872,0.00020809,2]
[322103646,1712777433226,-2857.9665461,0.00020812,2]
[322103647,1712777433236,-1000.0,0.00020812,2]
[322103648,1712777433246,-150.0,0.00020816,2]
[322103649,1712777433255,-150.0,0.0002082,2]
[322103650,1712777433266,-150.0,0.00020821,2]
[322103651,1712777433276,-150.0,0.00020821,2]
[322103652,1712777433285,-15284.02656097,0.00020823,2]
[322103653,1712777433294,-150.0,0.00020823,2]
[322103654,1712777433304,-300.0,0.00020825,2]
[322103655,1712777433313,-150.0,0.00020825,2]
[322103656,1712777433324,-1500.0,0.00020826,2]
[322103657,1712777433333,-150.0,0.00020828,2]
[322103658,1712777433343,-150.0,0.00020829,2]
[322103659,1712777433355,-1500.0,0.00020831,2]
[322103660,1712777433364,-200.0,0.00020832,2]
[322103661,1712777433372,-1000.0,0.00020832,2]
[322103662,1712777433381,-200.0,0.00020832,2]
[322103663,1712777433390,-500.0,0.00020832,2]
[322103664,1712777433399,-2857.9665461,0.00020834,2]
[322103665,1712777433409,-150.0,0.00020839,2]
[322103666,1712777433420,-252.3977854,0.00020846,2]
[322103667,1712777433430,-150.0,0.00020846,2]
[322103668,1712777433440,-150.0,0.00020847,2]
[322103669,1712777433450,-15284.02656097,0.00020848,2]
[322103670,1712777433459,-150.0,0.00020851,2]
[322103671,1712777433469,-150.0,0.00020853,2]
[322103672,1712777433480,-150.0,0.00020853,2]
[322103673,1712777433490,-300.0,0.00020853,2]
[322103674,1712777433501,-150.0,0.00020854,2]
[322103675,1712777433514,-157.85557872,0.00020855,2]
[322103676,1712777433524,-150.0,0.00020855,2]
[322103677,1712777433536,-2857.9665461,0.00020856,2]
[322103678,1712777433547,-150.0,0.00020857,2]
[322103679,1712777433557,-150.0,0.00020863,2]
[322103680,1712777433566,-150.0,0.00020864,2]
[322103681,1712777433575,-150.0,0.00020864,2]
[322103682,1712777433585,-150.0,0.00020866,2]
[322103683,1712777433597,-150.0,0.00020868,2]
[322103684,1712777433607,-150.0,0.00020874,2]
[322103685,1712777433617,-150.0,0.00020874,2]
[322103686,1712777433627,-15284.02656097,0.00020874,2]
[322103687,1712777433637,-150.0,0.00020876,2]
[322103688,1712777433646,-150.0,0.00020877,2]
[322103689,1712777433655,-2857.9665461,0.00020878,2]
[322103690,1712777433664,-150.0,0.00020878,2]
[322103691,1712777433674,-150.0,0.00020879,2]
[322103692,1712777433683,-150.0,0.0002088,2]
[322103693,1712777433693,-150.0,0.00020881,2]
[322103694,1712777433702,-300.0,0.00020884,2]
[322103695,1712777433711,-151.48,0.00020889,2]
[322103696,1712777433721,-1500.0,0.00020889,2]
[322103697,1712777433730,-150.0,0.0002089,2]
[322103698,1712777433739,-1500.0,0.00020891,2]
[322103699,1712777433748,-150.0,0.00020892,2]
[322103700,1712777433757,-150.0,0.00020894,2]
[322103701,1712777433766,-362.0345,0.00020895,2]
[322103702,1712777433775,-150.0,0.00020896,2]
[322103703,1712777433784,-200.39689148,0.00020898,2]
[322103704,1712777433793,-245000.0,0.00020899,2]
[322103705,1712777433803,-685.38253752,0.00020899,2]
[322103706,1712777433812,-191.0475,0.00020899,2]
[322103707,1712777433821,-170.9701071,0.00020899,2]
[322103708,1712777433830,-153.25874947,0.00020899,2]
[322103709,1712777433857,-180.08818957,0.00020899,2]
[322103710,1712777433873,-3087.37478657,0.00020899,2]
[322103711,1712777433894,-2856.50833,0.000209,2]
[322103712,1712777433913,-1367.1326,0.000209,2]
[322103713,1712777433930,-157.85557872,0.000209,2]
[322103714,1712777433948,-150.0,0.000209,2]
[322103715,1712777433966,-1500.0,0.000209,2]
[322103716,1712777433984,-180.08818957,0.000209,2]
[322103717,1712777434003,-2857.9665461,0.000209,2]
[322103718,1712777434020,-172.81913631,0.000209,2]
[322103719,1712777434039,-1000.0,0.000209,2]
[322103720,1712777434058,-5095.78503642,0.000209,2]
[322103721,1712777434071,-152.36796258,0.000209,2]
[322103722,1712777434087,-15284.02656097,0.000209,2]
[322103723,1712777434105,-7088.24611922,0.000209,2]
[322103724,1712777434118,-172.71494339,0.000209,2]
[322103725,1712777434133,-3455.14186774,0.000209,2]
[322103726,1712777434148,-181.64587543,0.000209,2]
[322103727,1712777434165,-150.0,0.00020906,2]
[322103728,1712777434180,-150.0,0.0002091,2]
[322103729,1712777434195,-500.0,0.00020912,2]
[322103730,1712777434210,-1500.0,0.00020913,2]
[322103731,1712777434225,-150.0,0.00020915,2]
[322103732,1712777434241,-150.0,0.00020916,2]
[322103733,1712777434255,-150.0,0.00020916,2]
[322103734,1712777434270,-1500.0,0.00020916,2]
[322103735,1712777434285,-1500.0,0.00020919,2]
[322103736,1712777434300,-150.0,0.00020923,2]
[322103737,1712777434315,-300.0,0.00020924,2]
[322103738,1712777434330,-150.0,0.00020924,2]
[322103739,1712777434345,-1500.0,0.00020926,2]
[322103740,1712777434360,-150.0,0.00020928,2]
[322103741,1712777434375,-150.0,0.00020928,2]
[322103742,1712777434390,-150.0,0.00020933,2]
[322103743,1712777434405,-1500.0,0.00020934,2]
[322103744,1712777434420,-1500.0,0.00020935,2]
[322103745,1712777434435,-150.0,0.00020936,2]
[322103746,1712777434449,-150.0,0.00020938,2]
[322103747,1712777434464,-150.0,0.00020939,2]
[322103748,1712777434479,-150.0,0.00020939,2]
[322103749,1712777434494,-1000.0,0.00020939,2]
[322103750,1712777434514,-150.0,0.00020941,2]
[322103751,1712777434529,-150.0,0.00020941,2]
[322103752,1712777434545,-1500.0,0.00020944,2]
[322103753,1712777434559,-150.0,0.00020946,2]
[322103754,1712777434573,-150.0,0.00020947,2]
[322103755,1712777434588,-1500.0,0.00020948,2]
[322103756,1712777434607,-150.0,0.00020949,2]
[322103757,1712777434621,-150.0,0.00020949,2]
[322103758,1712777434636,-150.0,0.00020953,2]
[322103759,1712777434651,-150.0,0.00020954,2]
[322103760,1712777434666,-150.0,0.00020955,2]
[322103761,1712777434680,-150.0,0.00020957,2]
[322103762,1712777434695,-150.0,0.00020957,2]
[322103763,1712777434710,-1500.0,0.00020957,2]
[322103764,1712777434725,-150.0,0.00020958,2]
[322103765,1712777434740,-150.0,0.00020958,2]
[322103766,1712777434755,-150.0,0.00020959,2]
[322103767,1712777434769,-150.0,0.0002096,2]
[322103768,1712777434783,-150.0,0.00020962,2]
[322103769,1712777434799,-150.0,0.00020965,2]
[322103770,1712777434814,-150.0,0.00020969,2]
[322103771,1712777434829,-150.0,0.00020975,2]
[322103772,1712777434842,-1500.0,0.00020977,2]
[322103773,1712777434853,-1500.0,0.00020979,2]
[322103774,1712777435015,-150.0,0.00020979,2]
[322103775,1712777435047,-300.0,0.0002098,2]
[322103776,1712777435057,-300.0,0.00020982,2]
[322103777,1712777435067,-150.0,0.00020982,2]
[322103778,1712777435077,-232.40801987,0.00020983,2]
[322103779,1712777435089,-150.0,0.00020984,2]
[322103780,1712777435102,-150.0,0.00020988,2]
[322103781,1712777435112,-151.48,0.00020989,2]
[322103782,1712777435122,-151.48,0.00020989,2]
[322103783,1712777435132,-151.48,0.00020989,2]
[322103784,1712777435141,-151.48,0.00020989,2]
[322103785,1712777435151,-151.48,0.00020989,2]
[322103786,1712777435161,-150.0,0.00020989,2]
[322103787,1712777435171,-1500.0,0.00020991,2]
[322103788,1712777435180,-150.0,0.00020992,2]
[322103789,1712777435190,-150.0,0.00020992,2]
[322103790,1712777435200,-300.0,0.00020994,2]
[322103791,1712777435211,-500.0,0.00020995,2]
[322103792,1712777435222,-205.36093141,0.00020997,2]
[322103793,1712777435232,-266.76517339,0.00020997,2]
[322103794,1712777435243,-572.46049469,0.00020997,2]
[322103795,1712777435253,-240.08283614,0.00020997,2]
[322103796,1712777435263,-232.02232687,0.00020997,2]
[322103797,1712777435274,-1131.18624237,0.00020998,2]
[322103798,1712777435283,-304.73622789,0.00020998,2]
[322103799,1712777435293,-155.62348997,0.00020998,2]
[322103800,1712777435303,-206.23207189,0.00020998,2]
[322103801,1712777435313,-256.02612092,0.00020998,2]
[322103802,1712777435322,-2570.9050671,0.00020998,2]
[322103803,1712777435333,-155.0,0.00020998,2]
[322103804,1712777435343,-171.98300256,0.00020998,2]
[322103805,1712777435356,-174.37037462,0.00020998,2]
[322103806,1712777435365,-304.58040453,0.00020998,2]
[322103807,1712777435374,-707.20622612,0.00020998,2]
[322103808,1712777435384,-295.8857038,0.00020998,2]
[322103809,1712777435393,-212.59855795,0.00020998,2]
[322103810,1712777435402,-240.02740078,0.00020998,2]
[322103811,1712777435412,-200.70356843,0.00020998,2]
[322103812,1712777435422,-274.86977578,0.00020998,2]
[322103813,1712777435432,-221.71485911,0.00020998,2]
[322103814,1712777435441,-601.30438827,0.00020998,2]
[322103815,1712777435451,-261.16504767,0.00020998,2]
[322103816,1712777435461,-169.64026488,0.00020998,2]
[322103817,1712777435470,-180.66352617,0.00020998,2]
[322103818,1712777435480,-350.76102204,0.00020998,2]
[322103819,1712777435489,-155.65339939,0.00020998,2]
[322103820,1712777435500,-788.71072943,0.00020998,2]
[322103821,1712777435509,-184.99361137,0.00020998,2]
[322103822,1712777435523,-155.0,0.00020998,2]
[322103823,1712777435533,-205.79634065,0.00020998,2]
[322103824,1712777435543,-211.96766339,0.00020998,2]
[322103825,1712777435553,-284.39788991,0.00020998,2]
[322103826,1712777435563,-210.58504563,0.00020998,2]
[322103827,1712777435572,-177.63444041,0.00020998,2]
[322103828,1712777435583,-2729.30649513,0.00020998,2]
[322103829,1712777435593,-157.09483559,0.00020998,2]
[322103830,1712777435605,-303.65133067,0.00020998,2]
[322103831,1712777435616,-238.64196047,0.00020998,2]
[322103832,1712777435625,-331.35254529,0.00020998,2]
[322103833,1712777435635,-180.68788228,0.00020998,2]
[322103834,1712777435645,-203.71027116,0.00020998,2]
[322103835,1712777435654,-273.88509868,0.00020998,2]
[322103836,1712777435664,-20163.40939977,0.00020998,2]
[322103837,1712777435673,-208.03176831,0.00020998,2]
[322103838,1712777435683,-157.31336717,0.00020998,2]
[322103839,1712777435693,-164.3276537,0.00020998,2]
[322103840,1712777435702,-155.13574457,0.00020998,2]
[322103841,1712777435712,-1238.94442072,0.00020998,2]
[322103842,1712777435721,-542.62978743,0.00020998,2]
[322103843,1712777435731,-319.99805191,0.00020998,2]
[322103844,1712777435740,-155.0,0.00020998,2]
[322103845,1712777435750,-407.22475255,0.00020998,2]
[322103846,1712777435760,-188.00024433,0.00020998,2]
[322103847,1712777435770,-155.0,0.00020998,2]
[322103848,1712777435779,-264.23455154,0.00020998,2]
[322103849,1712777435789,-245.06198005,0.00020998,2]
[322103850,1712777435799,-155.0,0.00020998,2]
[322103851,1712777435809,-244.97936461,0.00020998,2]
[322103852,1712777435819,-156.95147165,0.00020998,2]
[322103853,1712777435829,-654.6711174,0.00020998,2]
[322103854,1712777435839,-279.68472986,0.00020998,2]
[322103855,1712777435851,-163.70329151,0.00020998,2]
[322103856,1712777435861,-1053.83898605,0.00020998,2]
[322103857,1712777435871,-309.98182803,0.00020998,2]
[322103858,1712777435881,-155.20654588,0.00020998,2]
[322103859,1712777435890,-155.31508233,0.00020998,2]
[322103860,1712777435901,-150.0,0.00020998,2]
[322103861,1712777435910,-201.70547696,0.00020999,2]
[322103862,1712777435920,-155.0,0.00020999,2]
[322103863,1712777435930,-1762.62324428,0.00020999,2]
[322103864,1712777435940,-206.70628345,0.00020999,2]
[322103865,1712777435949,-5829.29953331,0.00020999,2]
[322103866,1712777435959,-86480.82878459,0.00020999,2]
[322103867,1712777435969,-563651.73201487,0.00020999,2]
[322103868,1712777435998,-1439.83169092,0.00020999,2]
[322103869,1712777436015,-168201.68650874,0.00020999,2]
[322103870,1712777436027,-689.46604758,0.00020999,2]
[322103871,1712777436039,-7211.0,0.00020999,2]
[322103872,1712777436065,-138981.95846764,0.00020999,2]
[322103889,1712777438984,-150.0,0.00020729,2]
[322103890,1712777438994,-150.0,0.00020754,2]
[322103891,1712777439003,-150.0,0.00020777,2]
[322103892,1712777439013,-150.0,0.0002079,2]
[322103893,1712777439021,-150.0,0.00020802,2]
[322103894,1712777439032,-150.0,0.00020809,2]
[322103895,1712777439041,-150.0,0.0002081,2]
[322103896,1712777439050,-150.0,0.00020822,2]
[322103897,1712777439061,-150.0,0.0002083,2]
[322103898,1712777439070,-150.0,0.00020859,2]
[322103899,1712777439079,-150.0,0.00020865,2]
[322103900,1712777439088,-150.0,0.00020867,2]
[322103901,1712777439099,-150.0,0.00020872,2]
[322103902,1712777439108,-187.59154684,0.0002089,2]
[322103903,1712777439118,-150.0,0.00020898,2]
[322103904,1712777439127,-150.0,0.00020902,2]
[322103905,1712777439138,-150.0,0.00020977,2]
[322103906,1712777439148,-150.0,0.00020977,2]
[322103907,1712777439157,-150.0,0.00020981,2]
[322103908,1712777439166,-14401.91845316,0.00020999,2]
[322103909,1712777439179,-780099.21761906,0.00020999,2]
[322103910,1712777439189,-554.3426581,0.00020999,2]
[322103911,1712777439199,-500.0,0.00020999,2]
[322103912,1712777439208,-500.0,0.00020999,2]
[322103913,1712777439217,-500.0,0.00020999,2]
[322103914,1712777439226,-300.07009792,0.00020999,2]
[322103915,1712777439236,-4777048.00979979,0.00021,2]
[322103916,1712777439246,-8139620.96688763,0.00021,2]
[322103917,1712777439257,-122046.7563477,0.00021,2]
[322103918,1712777439269,-976.2973391,0.00021,2]
[322103923,1712777440232,-640.1876335,0.00021,2]
[322103924,1712777440289,-257.59616578,0.00021,2]
[322103987,1712777443258,-150.0,0.00020751,2]
[322103988,1712777443268,-150.0,0.00020855,2]
[322103989,1712777443277,-389.25,0.00020999,2]
[322103990,1712777443316,-360.75999992,0.00020999,2]
[322103991,1712777443327,-1238.23299218,0.00020999,2]
[322103992,1712777443336,-626.87175961,0.00021,2]
[322103993,1712777443348,-3324.54257516,0.00021,2]
[322103994,1712777443375,-838.15147707,0.00021,2]
[322103995,1712777443435,-1277.26436635,0.00021,2]
[322103996,1712777443447,-47835.14013,0.00021,2]
[322104187,1712777445375,555.5998,0.0001892,2]
[322104203,1712777446315,-156.1640232,0.00020998,2]
[322104204,1712777446324,-1000.0,0.00020999,2]
[322104205,1712777446334,-52741.21199391,0.00021,2]
[322104206,1712777446346,-29283.93430615,0.00021,2]
[322104207,1712777588798,399.76,0.00018904,2]
[322104208,1712778051084,426.18,0.0001788,2]
[322104209,1712778497986,184.12,0.00015552,2]
[322104240,1712778632451,-1000.0,0.00019339,2]
[322104241,1712778632461,-540.70257895,0.0001934,2]
[322104242,1712778632473,-1012.85902105,0.0001934,2]
[322104243,1712778632483,-6917.79,0.0001944,2]
[322104244,1712778632493,-4053.43025673,0.00019445,2]
[322104245,1712778632539,-675.34496719,0.00019445,2]
[322104247,1712778632597,-19151.22477608,0.00019445,2]
[322104249,1712778632610,-885.79,0.00019466,2]
[322104251,1712778632619,-500.0,0.00019494,3]
[322104253,1712778632629,-150.0,0.0001953,2]
[322104255,1712778632639,-1097.07,0.0001953,2]
[322104257,1712778632650,-160.0,0.00019581,2]
[322104260,1712778632668,-200.0,0.00019581,2]
[322104262,1712778632682,-312.10476428,0.00019633,2]
[322104263,1712778632692,-150.0,0.00019633,2]
[322104264,1712778632702,-185.05,0.00019633,2]
[322104265,1712778632713,-19677.41337038,0.00019634,2]
[322104266,1712778632723,-3371.69,0.00019634,2]
[322104267,1712778632733,-2635.12,0.00019635,2]
[322104268,1712778632743,-171.53,0.00019665,2]
[322104269,1712778632753,-250.0,0.00019665,2]
[322104270,1712778632763,-1383.88,0.00019676,2]
[322104271,1712778632772,-500.0,0.00019707,2]
[322104272,1712778632782,-840.0,0.00020012,2]
[322104273,1712778632793,-426.18,0.00020143,2]
[322104274,1712778632802,-150.99,0.00020357,2]
[322104275,1712778632812,-2512.1593857,0.00020423,2]
[322104276,1712778632822,-200.0,0.00020444,2]
[322104277,1712778632834,-2500.0,0.000207,2]
[322104278,1712778632844,-198.07929641,0.00020714,2]
[322104279,1712778632857,-315.97222249,0.00020722,2]
[322104280,1712778632867,-165.70820129,0.0002079,2]
[322104281,1712778632880,-185.65671552,0.0002079,2]
[322104282,1712778632891,-500.0,0.00020799,2]
[322104283,1712778632902,-500.0,0.00020799,2]
[322104284,1712778632912,-530.00700979,0.00020799,2]
[322104285,1712778632922,-464843.44934256,0.000208,3]
[322104286,1712778632936,-3746.38281553,0.000208,3]
[322104287,1712778632949,-6481.68123966,0.000208,3]
[322104288,1712778632963,-1997.4276,0.000208,3]
[322104289,1712778632978,-816.16773,0.000208,3]
[322104290,1712778632991,-1078.46,0.000208,3]
[322104291,1712778633004,-1486.7837916,0.000208,3]
[322104292,1712778633016,-647.77,0.000208,3]
[322104293,1712778633044,-593.86971281,0.000208,3]
[322104294,1712778633056,-265.47249527,0.000208,3]
[322104295,1712778633068,-8186.07139352,0.000208,3]
[322104296,1712778633093,-400.0,0.000208,3]
[322104297,1712778633108,-313.70184265,0.000208,3]
[322104318,1712778638676,-165.70820129,0.0002079,2]
[322104319,1712778638686,-418.38302491,0.000208,3]
[322104320,1712778638697,-1398.59265845,0.000208,3]
[322104321,1712778638708,-122046.7563477,0.000208,3]
[322104374,1712778643330,-1755.81090056,0.00020799,2]
[322104381,1712778643387,-4778.56233376,0.00020799,2]
[322104393,1712778643501,-1000.87999974,0.00020799,2]
[322104395,1712778643513,-704.733448,0.00020799,2]
[322104407,1712778643631,-2027.96,0.00020799,2]
[322104545,1712778646255,-381.48652916,0.00020799,2]
[322104546,1712778646264,-122.75067046,0.00020799,2]
[322104547,1712778646299,-152497.51632967,0.00020799,2]
[322104548,1712778646311,-156972.65294049,0.00020799,2]
[322104556,1712778658032,1790.0,0.00033447,120]
[322104557,1712778660292,588.5862,0.00033447,30]
[322104558,1712778678342,3248.94282959,0.00033447,30]
[322104559,1712778700484,389.9,0.00018038,2]
[322104560,1712778784299,60577.22239707,0.000189,2]
[322104561,1712779002537,175.89,0.00015816,2]
[322104562,1712779231491,471.6,0.00017797,2]
[322104583,1712779810670,546.93,0.00017262,2]
[322104599,1712779832320,-1000.0,0.00019136,2]
[322104601,1712779832331,-162.05266801,0.00019137,2]
[322104604,1712779832341,-239.36767999,0.00019237,2]
[322104611,1712779832365,-10.63232001,0.00019237,2]
[322104614,1712779832374,-507.32911229,0.00019237,2]
[322104617,1712779832385,-509.47520094,0.00019237,2]
[322104620,1712779832394,-293.63501516,0.00019238,2]
[322104624,1712779832421,-242.28605329,0.00019238,2]
[322104626,1712779832431,-150.0,0.00019339,2]
[322104628,1712779832440,-3589.20083304,0.0001934,2]
[322104630,1712779832452,-484.32,0.0001934,2]
[322104632,1712779832463,-1693.91083072,0.0001934,2]
[322104635,1712779832476,-665.08469825,0.0001934,2]
[322104637,1712779832487,-431.18512968,0.0001934,2]
[322104642,1712779832531,-13049.71850831,0.0001934,2]
[322104644,1712779832540,-775.52,0.00019417,2]
[322104646,1712779832550,-1000.0,0.00019418,2]
[322104648,1712779832559,-718.45,0.00019422,2]
[322104650,1712779832569,-150.0,0.00019472,2]
[322104653,1712779832579,-546.93,0.00019526,2]
[322104655,1712779832589,-681.38,0.00019551,2]
[322104657,1712779832598,-160.0,0.00019551,2]
[322104659,1712779832608,-499.99,0.00019603,2]
[322104661,1712779832617,-3219.26,0.00019603,2]
[322104663,1712779832626,-2755.07,0.00019604,2]